fUSD/lending_fUSD_20240611
["ID","MTS","AMOUNT","RATE_DAILY","PERIOD"]
[329118117,1718121046986,-1932.5,0.00021917,2]
[329118119,1718121046996,-915.04,0.00021917,2]
[329118121,1718121047006,-397.69010374,0.00021917,2]
[329118123,1718121047017,-516.89,0.00021917,2]
[329118125,1718121047029,-1300.36,0.00021917,2]
[329118127,1718121047039,-619.59,0.00021917,2]
[329118129,1718121047049,-500.0,0.00021917,2]
[329118130,1718121047059,-643.88,0.00021917,2]
[329118133,1718121047069,-1636.96,0.00021917,2]
[329118135,1718121047079,-1765.01,0.00021917,2]
[329118136,1718121047089,-1356.13,0.00021917,2]
[329118138,1718121047099,-1109.58,0.00021917,2]
[329118140,1718121047110,-1024.24,0.00021917,2]
[329118142,1718121047120,-500.0,0.00021917,2]
[329118144,1718121047130,-500.0,0.00021917,2]
[329118146,1718121047140,-1089.58,0.00021917,2]
[329118148,1718121047150,-500.0,0.00021917,2]
[329118150,1718121047161,-1421.75,0.00021917,2]
[329118152,1718121047171,-500.0,0.00021917,2]
[329118153,1718121047182,-500.0,0.00021917,2]
[329118156,1718121047196,-500.0,0.00021917,2]
[329118158,1718121047207,-517.00375679,0.00021917,2]
[329118159,1718121047217,-500.0,0.00021917,2]
[329118162,1718121047227,-500.0,0.00021917,2]
[329118164,1718121047238,-500.0,0.00021917,2]
[329118166,1718121047248,-1275.35,0.00021917,2]
[329118168,1718121047259,-500.0,0.00021917,2]
[329118170,1718121047271,-500.0,0.00021917,2]
[329118172,1718121047283,-780.35,0.00021917,2]
[329118174,1718121047294,-500.0,0.00021917,2]
[329118176,1718121047304,-500.0,0.00021917,2]
[329118178,1718121047315,-1139.38,0.00021917,2]
[329118180,1718121047326,-500.0,0.00021917,2]
[329118182,1718121047336,-515.51514529,0.00021917,2]
[329118184,1718121047347,-500.0,0.00021917,2]
[329118186,1718121047357,-500.0,0.00021917,2]
[329118188,1718121047368,-500.0,0.00021917,2]
[329118190,1718121047379,-740.15,0.00021917,2]
[329118192,1718121047389,-500.0,0.00021917,2]
[329118194,1718121047400,-500.0,0.00021917,2]
[329118196,1718121047410,-150.05238836,0.00021917,2]
[329118198,1718121047422,-500.0,0.00021917,2]
[329118200,1718121047434,-500.0,0.00021917,2]
[329118202,1718121047444,-500.0,0.00021917,2]
[329118204,1718121047455,-976.26,0.00021917,2]
[329118206,1718121047465,-500.0,0.00021917,2]
[329118208,1718121047476,-500.0,0.00021917,2]
[329118210,1718121047486,-1678.98,0.00021917,2]
[329118212,1718121047497,-507.2712768,0.00021917,2]
[329118214,1718121047507,-500.0,0.00021917,2]
[329118216,1718121047518,-500.0,0.00021917,2]
[329118218,1718121047531,-509.47569803,0.00021917,2]
[329118220,1718121047542,-500.0,0.00021917,2]
[329118222,1718121047552,-434.59632574,0.00021917,2]
[329118224,1718121047562,-1370.42,0.00021917,2]
[329118226,1718121047572,-500.0,0.00021917,2]
[329118228,1718121047582,-500.0,0.00021917,2]
[329118230,1718121047592,-500.0,0.00021917,2]
[329118232,1718121047602,-1887.13,0.00021917,2]
[329118234,1718121047612,-500.0,0.00021917,2]
[329118236,1718121047622,-557.89009807,0.00021917,2]
[329118237,1718121047633,-500.0,0.00021917,2]
[329118240,1718121047643,-500.0,0.00021917,2]
[329118242,1718121047653,-500.0,0.00021917,2]
[329118244,1718121047664,-503.18780697,0.00021917,2]
[329118246,1718121047674,-500.0,0.00021917,2]
[329118248,1718121047684,-509.87812282,0.00021917,2]
[329118249,1718121047695,-369.88748987,0.00021917,2]
[329118252,1718121047705,-500.0,0.00021917,2]
[329118253,1718121047715,-500.0,0.00021917,2]
[329118255,1718121047726,-500.0,0.00021917,2]
[329118257,1718121047737,-500.0,0.00021917,2]
[329118259,1718121047752,-1411.34,0.00021917,2]
[329118262,1718121047780,-500.0,0.00021917,2]
[329118264,1718121047791,-500.0,0.00021917,2]
[329118266,1718121047803,-500.0,0.00021917,2]
[329118268,1718121047814,-3494.91,0.00021917,2]
[329118270,1718121047824,-500.0,0.00021917,2]
[329118272,1718121047837,-500.0,0.00021917,2]
[329118274,1718121047847,-355.77985486,0.00021917,2]
[329118277,1718121047858,-500.0,0.00021917,2]
[329118279,1718121047868,-500.0,0.00021917,2]
[329118281,1718121047878,-500.0,0.00021917,2]
[329118283,1718121047888,-503.29571742,0.00021917,2]
[329118285,1718121047898,-560.64,0.00021917,2]
[329118286,1718121047908,-520.98,0.00021917,2]
[329118288,1718121047918,-551.35,0.00021917,2]
[329118290,1718121047928,-500.0,0.00021917,2]
[329118293,1718121047938,-397.79152798,0.00021917,2]
[329118294,1718121047948,-500.0,0.00021917,2]
[329118296,1718121047958,-4759.33,0.00021917,2]
[329118299,1718121047969,-500.0,0.00021917,2]
[329118301,1718121047979,-500.0,0.00021917,2]
[329118303,1718121047989,-500.0,0.00021917,2]
[329118305,1718121047999,-500.0,0.00021917,2]
[329118307,1718121048010,-640.4,0.00021917,2]
[329118308,1718121048020,-5218.5,0.00021917,2]
[329118311,1718121048034,-511.8293292,0.00021917,2]
[329118313,1718121048044,-500.0,0.00021917,2]
[329118315,1718121048054,-2089.15,0.00021917,2]
[329118344,1718121048064,-529.17,0.00021917,2]
[329118348,1718121048312,-535.32746286,0.00021917,2]
[329118350,1718121048323,-4016.82,0.00021917,2]
[329118355,1718121048334,-500.0,0.00021917,2]
[329118358,1718121048344,-500.0,0.00021917,2]
[329118361,1718121048356,-162.83582415,0.00021917,2]
[329118364,1718121048369,-5477.38,0.00021917,2]
[329118367,1718121048382,-500.0,0.00021917,2]
[329118370,1718121048394,-604.85632232,0.00021917,2]
[329118374,1718121048404,-4956.98,0.00021917,2]
[329118377,1718121048415,-500.0,0.00021917,2]
[329118380,1718121048426,-518.12467528,0.00021917,2]
[329118383,1718121048437,-775.07,0.00021917,2]
[329118386,1718121048448,-512.35164432,0.00021917,2]
[329118389,1718121048460,-500.0,0.00021917,2]
[329118392,1718121048471,-500.0,0.00021917,2]
[329118395,1718121048484,-5507.04,0.00021917,2]
[329118398,1718121048494,-512.59774971,0.00021917,2]
[329118401,1718121048505,-500.0,0.00021917,2]
[329118404,1718121048516,-597.03030151,0.00021917,2]
[329118407,1718121048526,-500.0,0.00021917,2]
[329118409,1718121048541,-234.14859837,0.00021917,2]
[329118412,1718121048552,-518.06330456,0.00021917,2]
[329118416,1718121048563,-2525.1,0.00021917,2]
[329118419,1718121048573,-10639.18,0.00021917,2]
[329118421,1718121048583,-500.0,0.00021917,2]
[329118424,1718121048594,-697.85,0.00021917,2]
[329118427,1718121048605,-415.96,0.00021917,2]
[329118430,1718121048615,-500.0,0.00021917,2]
[329118433,1718121048625,-1675.56,0.00021917,2]
[329118435,1718121048636,-522.99329278,0.00021917,2]
[329118438,1718121048646,-11277.99,0.00021917,2]
[329118441,1718121048656,-500.0,0.00021917,2]
[329118444,1718121048666,-531.73,0.00021917,2]
[329118447,1718121048677,-1981.99,0.00021917,2]
[329118450,1718121048687,-1109.59,0.00021917,2]
[329118453,1718121048697,-500.0,0.00021917,2]
[329118455,1718121048707,-500.0,0.00021917,2]
[329118457,1718121048717,-503.94255823,0.00021917,2]
[329118460,1718121048728,-5912.78,0.00021917,2]
[329118463,1718121048738,-645.59,0.00021917,2]
[329118465,1718121048756,-2501.51,0.00021917,2]
[329118468,1718121048768,-516.84745054,0.00021917,2]
[329118471,1718121048781,-1185.45,0.00021917,2]
[329118473,1718121048791,-3543.9,0.00021917,2]
[329118475,1718121048801,-530.5291521,0.00021917,2]
[329118477,1718121048812,-4218.45,0.00021917,2]
[329118479,1718121048822,-517.92017164,0.00021917,2]
[329118481,1718121048833,-500.0,0.00021917,2]
[329118484,1718121048843,-525.6979199,0.00021917,2]
[329118487,1718121048854,-500.0,0.00021917,2]
[329118490,1718121048864,-1868.07,0.00021917,2]
[329118492,1718121048875,-350.5614648,0.00021917,2]
[329118494,1718121048885,-505.77743776,0.00021917,2]
[329118496,1718121048895,-1833.38,0.00021917,2]
[329118498,1718121048905,-1362.32,0.00021917,2]
[329118500,1718121048916,-500.0,0.00021917,2]
[329118502,1718121048926,-1851.86,0.00021917,2]
[329118504,1718121048937,-500.0,0.00021917,2]
[329118506,1718121048947,-2995.23,0.00021917,2]
[329118509,1718121048957,-500.0,0.00021917,2]
[329118512,1718121048967,-500.0,0.00021917,2]
[329118515,1718121048977,-500.0,0.00021917,2]
[329118518,1718121048989,-599.8,0.00021917,2]
[329118520,1718121049000,-500.0,0.00021917,2]
[329118522,1718121049011,-722.39,0.00021917,2]
[329118524,1718121049022,-511.84016465,0.00021917,2]
[329118526,1718121049036,-962.25,0.00021917,2]
[329118528,1718121049048,-4953.32,0.00021917,2]
[329118530,1718121049059,-35008.18,0.00021917,2]
[329118532,1718121049070,-944.32,0.00021917,2]
[329118534,1718121049081,-2293.2,0.00021917,2]
[329118536,1718121049093,-2058.41,0.00021917,2]
[329118539,1718121049108,-2845.71,0.00021917,2]
[329118541,1718121049122,-500.0,0.00021917,2]
[329118543,1718121049133,-527.08929288,0.00021917,2]
[329118545,1718121049143,-1068.44,0.00021917,2]
[329118547,1718121049155,-500.0,0.00021917,2]
[329118549,1718121049166,-502.02705391,0.00021917,2]
[329118551,1718121049177,-2442.04,0.00021917,2]
[329118553,1718121049190,-500.0,0.00021917,2]
[329118555,1718121049201,-500.0,0.00021917,2]
[329118557,1718121049212,-500.0,0.00021917,2]
[329118559,1718121049223,-13980.85,0.00021917,2]
[329118561,1718121049235,-2078.7,0.00021917,2]
[329118563,1718121049246,-500.0,0.00021917,2]
[329118566,1718121049258,-500.0,0.00021917,2]
[329118568,1718121049272,-3025.4,0.00021917,2]
[329118570,1718121049291,-512.54353491,0.00021917,2]
[329118571,1718121049304,-514.88388646,0.00021917,2]
[329118573,1718121049318,-1973.38,0.00021917,2]
[329118575,1718121049331,-4871.75,0.00021917,2]
[329118577,1718121049341,-463.8010442,0.00021917,2]
[329118579,1718121049352,-500.0,0.00021917,2]
[329118581,1718121049363,-6777.8,0.00021917,2]
[329118583,1718121049374,-500.0,0.00021917,2]
[329118584,1718121049386,-2080.57,0.00021917,2]
[329118585,1718121049396,-674.25,0.00021917,2]
[329118586,1718121049408,-500.0,0.00021917,2]
[329118587,1718121049419,-500.0,0.00021917,2]
[329118588,1718121049431,-500.0,0.00021917,2]
[329118589,1718121049443,-500.0,0.00021917,2]
[329118590,1718121049454,-4224.14,0.00021917,2]
[329118591,1718121049465,-1017.33,0.00021917,2]
[329118592,1718121049476,-2302.49,0.00021917,2]
[329118593,1718121049488,-26985.12,0.00021917,2]
[329118594,1718121049498,-500.0,0.00021917,2]
[329118595,1718121049509,-1254.66,0.00021917,2]
[329118596,1718121049520,-500.0,0.00021917,2]
[329118597,1718121049534,-500.0,0.00021917,2]
[329118598,1718121049545,-500.0,0.00021917,2]
[329118599,1718121049557,-967.07,0.00021917,2]
[329118600,1718121049568,-545.89,0.00021917,2]
[329118601,1718121049577,-500.0,0.00021917,2]
[329118602,1718121049587,-500.0,0.00021917,2]
[329118603,1718121049598,-500.0,0.00021917,2]
[329118604,1718121049609,-500.0,0.00021917,2]
[329118605,1718121049620,-5879.04,0.00021917,2]
[329118606,1718121049630,-4276.16,0.00021917,2]
[329118607,1718121049641,-500.0,0.00021917,2]
[329118608,1718121049652,-4792.55,0.00021917,2]
[329118609,1718121049662,-8024.63,0.00021917,2]
[329118610,1718121049673,-500.0,0.00021917,2]
[329118611,1718121049683,-500.0,0.00021917,2]
[329118612,1718121049693,-500.0,0.00021917,2]
[329118613,1718121049703,-1858.66,0.00021917,2]
[329118614,1718121049713,-500.0,0.00021917,2]
[329118615,1718121049723,-500.0,0.00021917,2]
[329118616,1718121049734,-500.0,0.00021917,2]
[329118617,1718121049749,-500.0,0.00021917,2]
[329118618,1718121049768,-1762.81,0.00021917,2]
[329118619,1718121049780,-3760.72,0.00021917,2]
[329118620,1718121049790,-840.85,0.00021917,2]
[329118621,1718121049800,-1082.65,0.00021917,2]
[329118622,1718121049810,-2786.42,0.00021917,2]
[329118623,1718121049820,-2388.89,0.00021917,2]
[329118624,1718121049830,-500.0,0.00021917,2]
[329118625,1718121049839,-500.0,0.00021917,2]
[329118626,1718121049850,-500.0,0.00021917,2]
[329118627,1718121049860,-15334.31,0.00021917,2]
[329118628,1718121049870,-1792.91,0.00021917,2]
[329118629,1718121049883,-516.19695897,0.00021917,2]
[329118630,1718121049893,-500.0,0.00021917,2]
[329118631,1718121049904,-516.66347178,0.00021917,2]
[329118632,1718121049914,-500.0,0.00021917,2]
[329118633,1718121049925,-1437.77,0.00021917,2]
[329118634,1718121049935,-500.0,0.00021917,2]
[329118635,1718121049945,-3774.37,0.00021917,2]
[329118636,1718121049956,-1642.66,0.00021917,2]
[329118637,1718121049967,-500.0,0.00021917,2]
[329118638,1718121049978,-1875.57,0.00021917,2]
[329118639,1718121049988,-2119.15,0.00021917,2]
[329118640,1718121049999,-500.0,0.00021917,2]
[329118641,1718121050009,-336.21128306,0.00021917,2]
[329118642,1718121050020,-500.0,0.00021917,2]
[329118643,1718121050033,-1470.85,0.00021917,2]
[329118644,1718121050043,-500.0,0.00021917,2]
[329118645,1718121050054,-5787.43,0.00021917,2]
[329118646,1718121050065,-2197.97,0.00021917,2]
[329118647,1718121050076,-632.32,0.00021917,2]
[329118648,1718121050086,-500.0,0.00021917,2]
[329118649,1718121050111,-2076.16,0.00021917,2]
[329118650,1718121050123,-1323.85,0.00021917,2]
[329118651,1718121050133,-500.0,0.00021917,2]
[329118652,1718121050144,-4129.62,0.00021917,2]
[329118653,1718121050156,-500.0,0.00021917,2]
[329118654,1718121050167,-500.0,0.00021917,2]
[329118655,1718121050183,-500.0,0.00021917,2]
[329118656,1718121050194,-500.0,0.00021917,2]
[329118657,1718121050204,-2561.95,0.00021917,2]
[329118658,1718121050215,-2477.92,0.00021917,2]
[329118659,1718121050225,-796.45,0.00021917,2]
[329118660,1718121050236,-500.0,0.00021917,2]
[329118661,1718121050247,-500.0,0.00021917,2]
[329118662,1718121050258,-500.0,0.00021917,2]
[329118663,1718121050269,-7351.55,0.00021917,2]
[329118664,1718121050281,-500.0,0.00021917,2]
[329118665,1718121050292,-500.0,0.00021917,2]
[329118666,1718121050302,-500.0,0.00021917,2]
[329118667,1718121050313,-500.0,0.00021917,2]
[329118668,1718121050324,-5222.97,0.00021917,2]
[329118669,1718121050334,-2001.84,0.00021917,2]
[329118670,1718121050344,-4984.18,0.00021917,2]
[329118671,1718121050355,-4359.1,0.00021917,2]
[329118673,1718121050365,-2146.89,0.00021917,2]
[329118675,1718121050376,-694.83,0.00021917,2]
[329118677,1718121050387,-500.0,0.00021917,2]
[329118679,1718121050397,-3240.03,0.00021917,2]
[329118681,1718121050407,-5044.8,0.00021917,2]
[329118683,1718121050417,-2536.76,0.00021917,2]
[329118685,1718121050428,-780.26,0.00021917,2]
[329118687,1718121050438,-652.77,0.00021917,2]
[329118689,1718121050448,-577.12248817,0.00021917,2]
[329118691,1718121050461,-3882.23,0.00021917,2]
[329118693,1718121050472,-500.0,0.00021917,2]
[329118695,1718121050482,-2829.8,0.00021917,2]
[329118697,1718121050494,-500.0,0.00021917,2]
[329118699,1718121050504,-3408.01,0.00021917,2]
[329118701,1718121050516,-2972.07,0.00021917,2]
[329118703,1718121050529,-508.09942469,0.00021917,2]
[329118705,1718121050540,-3289.59,0.00021917,2]
[329118707,1718121050551,-500.0,0.00021917,2]
[329118709,1718121050562,-2213.16,0.00021917,2]
[329118711,1718121050573,-500.0,0.00021917,2]
[329118713,1718121050583,-500.0,0.00021917,2]
[329118715,1718121050593,-997.49,0.00021917,2]
[329118717,1718121050603,-500.0,0.00021917,2]
[329118719,1718121050613,-1184.21,0.00021917,2]
[329118721,1718121050623,-507.84021507,0.00021917,2]
[329118723,1718121050633,-728.11,0.00021917,2]
[329118725,1718121050643,-1786.1,0.00021917,2]
[329118727,1718121050653,-500.0,0.00021917,2]
[329118729,1718121050662,-4481.85,0.00021917,2]
[329118731,1718121050672,-2867.05,0.00021917,2]
[329118733,1718121050682,-500.0,0.00021917,2]
[329118735,1718121050693,-500.0,0.00021917,2]
[329118737,1718121050705,-500.0,0.00021917,2]
[329118739,1718121050715,-500.0,0.00021917,2]
[329118741,1718121050726,-500.0,0.00021917,2]
[329118743,1718121050736,-1740.88,0.00021917,2]
[329118745,1718121050747,-1520.29,0.00021917,2]
[329118747,1718121050758,-555.19657261,0.00021917,2]
[329118748,1718121050768,-500.0,0.00021917,2]
[329118749,1718121050782,-500.0,0.00021917,2]
[329118750,1718121050803,-647.40116145,0.00021917,2]
[329118751,1718121050814,-500.0,0.00021917,2]
[329118752,1718121050824,-500.0,0.00021917,2]
[329118753,1718121050835,-5782.21,0.00021917,2]
[329118754,1718121050845,-1608.59,0.00021917,2]
[329118756,1718121050855,-521.03083057,0.00021917,2]
[329118758,1718121050866,-619.82,0.00021917,2]
[329118759,1718121050876,-500.0,0.00021917,2]
[329118760,1718121050886,-10145.56,0.00021917,2]
[329118761,1718121050897,-500.0,0.00021917,2]
[329118762,1718121050908,-1136.65,0.00021917,2]
[329118763,1718121050918,-500.0,0.00021917,2]
[329118764,1718121050928,-639.58,0.00021917,2]
[329118765,1718121050940,-3750.79,0.00021917,2]
[329118766,1718121050950,-1082.27,0.00021917,2]
[329118767,1718121050961,-511.42004816,0.00021917,2]
[329118768,1718121050971,-500.0,0.00021917,2]
[329118769,1718121050982,-500.0,0.00021917,2]
[329118770,1718121050992,-250.0,0.00021918,2]
[329118771,1718121051003,-150.0,0.00021918,2]
[329118772,1718121051013,-150.0,0.00021918,2]
[329118773,1718121051023,-550.63930364,0.00022054,2]
[329118774,1718121051036,-725.54,0.00022054,2]
[329118775,1718121051046,-500.0,0.00022054,2]
[329118776,1718121051056,-1026.73,0.00022054,2]
[329118777,1718121051066,-1296.0,0.00022054,2]
[329118778,1718121051076,-1405.76,0.00022054,2]
[329118779,1718121051087,-1034.47,0.00022054,2]
[329118780,1718121051097,-500.0,0.00022054,2]
[329118781,1718121051125,-1528.38,0.00022054,2]
[329118782,1718121051135,-500.0,0.00022054,2]
[329118783,1718121051158,-500.0,0.00022054,2]
[329118784,1718121051169,-2234.33,0.00022054,2]
[329118785,1718121051184,-674.43,0.00022054,2]
[329118786,1718121051195,-680.06,0.00022054,2]
[329118787,1718121051205,-500.0,0.00022054,2]
[329118788,1718121051217,-1394.55,0.00022054,2]
[329118789,1718121051227,-651.06,0.00022054,2]
[329118790,1718121051239,-500.0,0.00022054,2]
[329118791,1718121051250,-500.0,0.00022054,2]
[329118792,1718121051262,-500.0,0.00022054,2]
[329118793,1718121051273,-1499.43,0.00022054,2]
[329118794,1718121051284,-701.68,0.00022054,2]
[329118795,1718121051295,-1269.35,0.00022054,2]
[329118796,1718121051312,-500.0,0.00022054,2]
[329118797,1718121051324,-1136.71,0.00022054,2]
[329118798,1718121051335,-1197.33,0.00022054,2]
[329118799,1718121051346,-570.94,0.00022054,2]
[329118800,1718121051357,-1478.08,0.00022054,2]
[329118801,1718121051368,-1143.55,0.00022054,2]
[329118802,1718121051380,-1036.87,0.00022054,2]
[329118803,1718121051392,-526.16,0.00022054,2]
[329118804,1718121051403,-892.02,0.00022054,2]
[329118805,1718121051414,-500.0,0.00022054,2]
[329118806,1718121051424,-500.0,0.00022054,2]
[329118807,1718121051436,-1308.87,0.00022054,2]
[329118808,1718121051449,-160.89,0.00022054,2]
[329118809,1718121051461,-1310.64,0.00022054,2]
[329118810,1718121051472,-1348.85,0.00022054,2]
[329118811,1718121051488,-500.0,0.00022054,2]
[329118812,1718121051500,-1504.67,0.00022054,2]
[329118813,1718121051511,-500.0,0.00022054,2]
[329118814,1718121051522,-500.0,0.00022054,2]
[329118815,1718121051535,-2154.24,0.00022054,2]
[329118816,1718121051544,-500.0,0.00022054,2]
[329118817,1718121051554,-1185.95,0.00022054,2]
[329118818,1718121051565,-1706.4,0.00022054,2]
[329118819,1718121051575,-1932.5,0.00022054,2]
[329118820,1718121051586,-915.04,0.00022054,2]
[329118821,1718121051598,-516.89,0.00022054,2]
[329118822,1718121051609,-1300.36,0.00022054,2]
[329118823,1718121051621,-619.59,0.00022054,2]
[329118824,1718121051631,-500.0,0.00022054,2]
[329118825,1718121051643,-643.88,0.00022054,2]
[329118826,1718121051654,-1636.96,0.00022054,2]
[329118827,1718121051665,-1765.01,0.00022054,2]
[329118828,1718121051676,-1109.58,0.00022054,2]
[329118829,1718121051686,-1356.13,0.00022054,2]
[329118830,1718121051697,-1024.24,0.00022054,2]
[329118831,1718121051707,-500.0,0.00022054,2]
[329118832,1718121051718,-500.0,0.00022054,2]
[329118833,1718121051729,-1089.58,0.00022054,2]
[329118834,1718121051739,-500.0,0.00022054,2]
[329118835,1718121051756,-1421.75,0.00022054,2]
[329118836,1718121051770,-500.0,0.00022054,2]
[329118837,1718121051786,-500.0,0.00022054,2]
[329118838,1718121051798,-500.0,0.00022054,2]
[329118839,1718121051813,-500.0,0.00022054,2]
[329118840,1718121051826,-500.0,0.00022054,2]
[329118841,1718121051836,-500.0,0.00022054,2]
[329118842,1718121051848,-1275.35,0.00022054,2]
[329118843,1718121051861,-500.0,0.00022054,2]
[329118844,1718121051872,-500.0,0.00022054,2]
[329118845,1718121051882,-780.35,0.00022054,2]
[329118846,1718121051893,-273.72564916,0.00022054,2]
[329118847,1718121051904,-500.0,0.00022054,2]
[329118848,1718121051915,-1139.38,0.00022054,2]
[329118849,1718121051926,-500.0,0.00022054,2]
[329118850,1718121051937,-510.80026375,0.00022054,2]
[329118851,1718121051948,-500.0,0.00022054,2]
[329118852,1718121051964,-500.0,0.00022054,2]
[329118853,1718121051979,-740.15,0.00022054,2]
[329118854,1718121051990,-500.0,0.00022054,2]
[329118855,1718121052001,-500.0,0.00022054,2]
[329118856,1718121052012,-500.0,0.00022054,2]
[329118857,1718121052022,-523.31609713,0.00022054,2]
[329118858,1718121052035,-976.26,0.00022054,2]
[329118859,1718121052046,-500.0,0.00022054,2]
[329118860,1718121052056,-500.0,0.00022054,2]
[329118861,1718121052067,-1678.98,0.00022054,2]
[329118862,1718121052078,-507.31920859,0.00022054,2]
[329118863,1718121052089,-500.0,0.00022054,2]
[329118864,1718121052100,-500.0,0.00022054,2]
[329118865,1718121052110,-1370.42,0.00022054,2]
[329118866,1718121052121,-500.0,0.00022054,2]
[329118867,1718121052131,-500.0,0.00022054,2]
[329118868,1718121052142,-500.0,0.00022054,2]
[329118869,1718121052155,-1887.13,0.00022054,2]
[329118870,1718121052166,-500.0,0.00022054,2]
[329118871,1718121052177,-500.0,0.00022054,2]
[329118872,1718121052189,-384.49772982,0.00022054,2]
[329118873,1718121052199,-500.0,0.00022054,2]
[329118874,1718121052209,-500.0,0.00022054,2]
[329118875,1718121052220,-304.57317419,0.00022054,2]
[329118876,1718121052231,-500.0,0.00022054,2]
[329118877,1718121052241,-500.0,0.00022054,2]
[329118878,1718121052251,-1411.34,0.00022054,2]
[329118879,1718121052262,-500.0,0.00022054,2]
[329118880,1718121052274,-500.0,0.00022054,2]
[329118881,1718121052287,-3494.91,0.00022054,2]
[329118882,1718121052298,-500.0,0.00022054,2]
[329118883,1718121052308,-500.0,0.00022054,2]
[329118884,1718121052319,-500.0,0.00022054,2]
[329118885,1718121052329,-500.0,0.00022054,2]
[329118886,1718121052340,-500.0,0.00022054,2]
[329118887,1718121052350,-560.64,0.00022054,2]
[329118888,1718121052361,-520.98,0.00022054,2]
[329118889,1718121052371,-551.35,0.00022054,2]
[329118890,1718121052382,-500.0,0.00022054,2]
[329118891,1718121052392,-4759.33,0.00022054,2]
[329118892,1718121052402,-500.0,0.00022054,2]
[329118893,1718121052413,-538.57617824,0.00022054,2]
[329118894,1718121052423,-640.4,0.00022054,2]
[329118895,1718121052433,-5218.5,0.00022054,2]
[329118896,1718121052444,-500.0,0.00022054,2]
[329118897,1718121052455,-2089.15,0.00022054,2]
[329118898,1718121052465,-529.17,0.00022054,2]
[329118899,1718121052475,-4016.82,0.00022054,2]
[329118900,1718121052486,-500.0,0.00022054,2]
[329118901,1718121052497,-5477.38,0.00022054,2]
[329118902,1718121052508,-500.0,0.00022054,2]
[329118903,1718121052518,-500.0,0.00022054,2]
[329118904,1718121052531,-775.07,0.00022054,2]
[329118905,1718121052542,-500.0,0.00022054,2]
[329118906,1718121052552,-4956.98,0.00022054,2]
[329118907,1718121052563,-500.0,0.00022054,2]
[329118908,1718121052573,-5507.04,0.00022054,2]
[329118909,1718121052583,-500.0,0.00022054,2]
[329118910,1718121052593,-500.0,0.00022054,2]
[329118911,1718121052604,-2525.1,0.00022054,2]
[329118912,1718121052615,-10639.18,0.00022054,2]
[329118913,1718121052625,-697.85,0.00022054,2]
[329118914,1718121052636,-415.96,0.00022054,2]
[329118915,1718121052647,-500.0,0.00022054,2]
[329118916,1718121052659,-1675.56,0.00022054,2]
[329118917,1718121052670,-11277.99,0.00022054,2]
[329118918,1718121052681,-500.0,0.00022054,2]
[329118919,1718121052691,-531.73,0.00022054,2]
[329118920,1718121052702,-1981.99,0.00022054,2]
[329118921,1718121052712,-1109.59,0.00022054,2]
[329118922,1718121052723,-386.89,0.00022054,2]
[329118923,1718121052733,-500.0,0.00022054,2]
[329118924,1718121052744,-5912.78,0.00022054,2]
[329118925,1718121052765,-645.59,0.00022054,2]
[329118926,1718121052776,-2501.51,0.00022054,2]
[329118927,1718121052788,-1185.45,0.00022054,2]